bitfinex/quotes_ETHUSD_20240729
["timestamp","ask_amount","ask_price","bid_price","bid_amount"]
[1722216676557,2.42301,3301.7,3301.2,6.78]
[1722216677133,2.42307,3301.6,3301.2,6.78]
[1722216677330,2.42299,3301.7,3301.2,6.78]
[1722216677564,2.42299,3301.7,3301.2,7.700343]
[1722216677763,2.42319,3301.5,3301.2,6.78]
[1722216677978,0.1486537,3301.9,3301.2,6.78]
[1722216677979,2.42328,3301.3,3301.2,6.78]
[1722216678131,2.42316,3301.5,3301.2,6.78]
[1722216678338,0.1486537,3301.9,3301.2,6.78]
[1722216679237,2.42312,3301.6,3301.2,6.78]
[1722216679585,2.42312,3301.6,3301.3,0.10843286]
[1722216679938,2.42312,3301.6,3301.0,2.4235]
[1722216680133,0.1486537,3301.9,3301.4,0.10836141]
[1722216680134,2.42314,3301.5,3301.4,0.10836141]
[1722216680332,2.42341,3301.2,3300.9,15.85976263]
[1722216680561,2.42343,3301.1,3300.9,15.85976263]
[1722216680765,2.42343,3301.1,3300.5,2.42386]
[1722216681282,2.42351,3301.0,3300.4,6.78]
[1722216681487,2.42385,3300.6,3300.4,6.78]
[1722216681688,2.42343,3301.1,3300.4,6.78]
[1722216681973,2.3393,3301.2,3300.4,6.78]
[1722216681974,2.42387,3300.5,3300.4,6.78]
[1722216682340,4.84774,3300.5,3300.4,6.78]
[1722216683985,2.42377,3300.7,3299.7,6.78]
[1722216684281,2.42422,3300.1,3299.7,6.78]
[1722216684487,3.0,3300.9,3299.7,6.78]
[1722216684488,2.42383,3300.6,3299.7,6.78]
[1722216684673,2.42429,3300.0,3299.7,6.78]
[1722216684861,2.42429,3300.0,3299.3,14.84471]
[1722216685486,2.42413,3300.2,3299.5,2.42455]
[1722216685689,2.42417,3300.1,3299.5,2.42455]
[1722216686000,2.42417,3300.1,3299.6,0.542455]
[1722216687100,2.42402,3300.3,3299.6,2.966975]
[1722216687304,2.42388,3300.5,3299.7,2.42439]
[1722216687603,2.42395,3300.4,3299.8,2.42438]
[1722216687758,2.42395,3300.4,3299.9,0.242438]
[1722216687759,2.42403,3300.3,3299.9,0.242438]
[1722216687995,2.42395,3300.4,3299.6,0.542455]
[1722216687996,2.42416,3300.2,3299.6,0.542455]
[1722216688197,2.42415,3300.2,3299.6,0.542455]
[1722216688506,2.4243,3300.0,3299.6,0.542455]
[1722216688705,2.42431,3299.9,3299.6,0.542455]
[1722216689254,2.42417,3300.1,3299.6,0.542455]
[1722216689396,2.42442,3299.8,3299.6,0.542455]
[1722216689794,2.42442,3299.8,3299.3,3.0]
[1722216690033,2.42397,3300.4,3299.4,2.42462]
[1722216690213,2.42397,3300.4,3299.5,2.42457]
[1722216690421,2.42414,3300.2,3299.5,2.42457]
[1722216690641,2.42414,3300.2,3299.3,3.0]
[1722216690939,2.42443,3299.8,3299.3,4.45085]
[1722216691798,4.69191,3300.5,3299.3,1.45085]
[1722216691799,2.42467,3299.5,3299.3,1.45085]
[1722216692042,2.42467,3299.5,3299.2,6.78]
[1722216692354,2.42468,3299.4,3299.2,6.78]
[1722216693356,2.42494,3299.1,3298.8,3.43976263]
[1722216693539,2.42494,3299.1,3298.3,21.5504]
[1722216693540,2.4251,3298.9,3298.3,21.5504]
[1722216693849,2.42494,3299.1,3298.4,2.397591]
[1722216693850,2.42512,3298.8,3298.4,2.397591]
[1722216694440,2.42527,3298.6,3298.5,0.11104805]
[1722216694671,2.42527,3298.6,3298.0,6.78]
[1722216694672,2.42543,3298.4,3298.0,6.78]
[1722216694980,2.42549,3298.3,3298.1,0.11133438]
[1722216695180,2.42556,3298.2,3298.1,0.11133438]
[1722216695351,2.42583,3297.9,3297.6,6.78]
[1722216695851,2.4255,3298.3,3297.6,9.20599]
[1722216696060,2.42567,3298.1,3297.6,6.78]
[1722216696378,2.42572,3298.0,3297.7,0.678]
[1722216696681,2.42551,3298.3,3297.7,0.678]
[1722216696682,2.42561,3298.2,3297.7,0.678]
[1722216697258,2.42565,3298.1,3297.7,0.678]
[1722216697454,2.42557,3298.2,3297.7,0.678]
[1722216698105,2.42579,3297.9,3297.7,0.678]
[1722216698386,2.42579,3297.9,3297.6,6.78]
[1722216698684,5.42518,3298.8,3297.6,6.78]
[1722216698685,2.42593,3297.7,3297.6,6.78]
[1722216698880,2.42593,3297.7,3297.1,3.43976263]
[1722216699435,2.42579,3297.9,3297.1,3.43976263]
[1722216699436,2.426,3297.6,3297.1,3.43976263]
[1722216699643,2.426,3297.6,3297.2,0.58661926]
[1722216699841,2.426,3297.6,3297.0,3.0]
[1722216700144,2.42587,3297.8,3297.0,5.42644]
[1722216700366,2.42587,3297.8,3297.1,2.42636]
[1722216700988,2.42573,3298.0,3297.3,2.42617]
[1722216701190,2.42573,3298.0,3297.4,2.42611]
[1722216701354,2.42558,3298.2,3297.4,2.42611]
[1722216701555,2.42558,3298.2,3297.5,2.42607]
[1722216701965,2.397,3298.7,3297.3,2.42621]
[1722216701966,2.42564,3298.1,3297.3,2.42621]
[1722216702212,2.42551,3298.3,3297.4,2.42609]
[1722216702353,2.42556,3298.2,3297.6,2.42599]
[1722216702889,2.42507,3298.9,3298.3,2.42549]
[1722216703050,2.42507,3298.9,3298.0,2.42568]
[1722216703051,2.42507,3298.9,3298.0,9.20568]
[1722216703251,2.42507,3298.9,3298.0,6.78]
[1722216703501,2.42539,3298.5,3298.1,0.920576]
[1722216704089,2.42539,3298.5,3298.0,6.78]
[1722216704295,2.42556,3298.2,3298.0,6.78]
[1722216704502,2.42542,3298.4,3297.7,3.0]
[1722216704804,2.42499,3299.0,3297.6,3.0]
[1722216704967,2.63674582,3299.2,3297.6,3.0]
[1722216704968,2.4249,3299.1,3297.9,2.4543]
[1722216705167,0.31764582,3299.2,3298.7,2.42519]
[1722216705368,2.42468,3299.4,3298.8,2.42506]
[1722216705569,2.42448,3299.7,3298.8,2.42506]
[1722216705772,2.42448,3299.7,3299.0,2.42492]
[1722216706081,2.77280794,3299.8,3299.0,2.42492]
[1722216706082,2.74199794,3299.8,3299.1,2.5359961]
[1722216706471,4.87929,3300.2,3299.1,0.1111561]
[1722216706674,2.42425,3300.0,3299.1,2.5360361]
[1722216707495,2.74147805,3300.4,3299.1,0.1111561]
[1722216707656,2.74147805,3300.4,3299.6,2.42451]
[1722216707856,2.74147805,3300.4,3299.7,0.1107269]
[1722216708302,0.31752805,3300.4,3299.7,0.1107269]
[1722216708466,2.4238,3300.6,3299.9,2.42428]
[1722216708799,2.42387,3300.5,3300.0,0.11036489]
[1722216709005,4.87893,3300.7,3300.0,0.11036489]
[1722216709006,2.42395,3300.4,3300.0,0.11036489]
[1722216709313,2.42424,3300.0,3299.4,6.78]
[1722216709508,2.911733,3300.6,3299.5,0.11072248]
[1722216709686,2.42387,3300.5,3299.5,0.11072248]
[1722216709869,2.4244,3299.8,3299.5,0.11072248]
[1722216710271,2.42447,3299.7,3299.0,9.578902]
[1722216710568,2.42447,3299.7,3299.1,0.11100864]
[1722216710974,2.42441,3299.8,3299.2,2.42482]
[1722216711317,2.42431,3299.9,3299.3,0.11067368]
[1722216711487,2.42446,3299.7,3299.3,0.11067368]
[1722216711679,2.42446,3299.7,3299.0,9.20497]
[1722216711892,2.4241,3300.2,3299.3,2.42468]
[1722216712076,2.42387,3300.5,3299.9,2.42431]
[1722216712266,2.9605663,3300.5,3300.0,0.11019838]
[1722216712686,2.9605663,3300.5,3299.8,2.42438]
[1722216712884,2.42374,3300.7,3299.9,0.11021283]
[1722216713136,2.42374,3300.7,3299.6,6.78]
[1722216713413,2.42365,3300.8,3300.1,2.42416]
[1722216713584,2.74109944,3300.9,3300.2,2.42409]
[1722216713772,2.74109944,3300.9,3300.2,2.53408673]
[1722216714402,2.42365,3300.8,3300.2,2.53408673]
[1722216714873,0.31749944,3300.9,3300.2,2.53408673]
[1722216715074,2.74107944,3300.9,3300.2,2.53408673]
[1722216715674,0.31749944,3300.9,3300.2,0.10999673]
[1722216715893,0.31749944,3300.9,3300.4,2.42394]
[1722216716108,0.31749944,3300.9,3300.5,0.10971094]
[1722216716285,2.42344,3301.1,3300.5,0.10971094]
[1722216716892,2.42344,3301.1,3300.5,2.53358094]
[1722216717099,2.42331,3301.3,3300.5,2.53358094]
[1722216717100,2.42331,3301.3,3300.5,0.10971094]
[1722216717414,2.42331,3301.3,3300.7,2.42372]
[1722216717415,3.24372672,3301.3,3300.7,2.42372]
[1722216717618,3.24372672,3301.3,3300.6,2.42379]
[1722216717916,2.42336,3301.2,3300.7,0.10952045]
[1722216718681,2.42344,3301.1,3300.7,0.10952045]
[1722216718894,2.42344,3301.1,3300.4,2.42393]
[1722216719098,2.42344,3301.1,3300.5,0.10966341]
[1722216719296,2.42344,3301.1,3300.5,2.53353341]
[1722216719509,2.42344,3301.1,3300.5,0.10966341]
[1722216719831,2.42358,3300.9,3300.3,2.42401]
[1722216720130,2.42344,3301.1,3300.4,2.42394]
[1722216720432,2.42338,3301.2,3300.5,2.53336178]
[1722216720618,0.82041672,3301.3,3300.5,0.10950178]
[1722216720819,2.42355,3301.0,3300.5,0.10950178]
[1722216721242,2.42355,3301.0,3300.3,4.76051]
[1722216721735,2.42355,3301.0,3300.2,6.78]
[1722216721736,5.4634,3301.5,3300.4,0.10958277]
[1722216721924,2.42377,3300.7,3300.4,0.10958277]
[1722216722132,2.42377,3300.7,3300.2,6.78]
[1722216722298,2.42377,3300.7,3300.3,0.10965902]
[1722216722496,2.42377,3300.7,3300.2,6.78]
[1722216722738,2.42377,3300.7,3300.3,0.10965902]
[1722216723038,2.42359,3300.9,3300.2,6.78]
[1722216723220,2.42345,3301.1,3300.4,0.10960178]
[1722216723420,2.42345,3301.1,3300.3,2.42402]
[1722216723421,2.42345,3301.1,3300.3,0.10967486]
[1722216723633,2.42371,3300.8,3300.5,0.10953188]
[1722216723800,2.42371,3300.8,3300.4,0.10960337]
[1722216723998,2.42371,3300.8,3300.6,0.10946039]
[1722216724201,2.42372,3300.7,3300.5,0.10953188]
[1722216724402,2.42372,3300.7,3300.2,6.78]
[1722216724802,2.4238,3300.6,3300.2,6.78]
[1722216725030,2.42367,3300.8,3300.1,2.42415]
[1722216725342,2.42353,3301.0,3299.8,21.6876]
[1722216725553,2.42353,3301.0,3300.3,2.42402]
[1722216725714,2.42358,3300.9,3300.3,2.42402]
[1722216725915,2.42365,3300.8,3300.1,2.42413]
[1722216726800,2.42332,3301.3,3300.0,2.42424]
[1722216727011,2.42375,3300.7,3300.0,2.42424]
[1722216727410,2.2672,3301.0,3299.8,6.78]
[1722216727617,2.42429,3300.0,3299.8,6.78]
[1722216727931,2.42429,3300.0,3299.3,4.91535]
[1722216728113,2.42432,3299.9,3299.2,6.78]
[1722216728508,2.42422,3300.1,3299.3,2.42475]
[1722216728843,2.42425,3300.0,3299.2,6.78]
[1722216729030,2.42439,3299.8,3299.2,6.78]
[1722216729199,2.42446,3299.7,3299.2,6.78]
[1722216729644,2.42437,3299.9,3299.2,6.78]
[1722216729805,2.42437,3299.9,3299.2,9.20478]
[1722216730007,2.42437,3299.9,3299.3,2.42475]
[1722216730207,2.4664,3300.3,3299.3,2.42475]
[1722216730208,2.42421,3300.1,3299.3,2.42475]
[1722216730840,2.42421,3300.1,3299.5,2.42456]
[1722216731216,2.4664,3300.3,3299.7,2.42439]
[1722216731217,2.42407,3300.3,3299.7,2.42439]
[1722216731415,2.42414,3300.2,3299.5,2.909511]
[1722216731640,2.42413,3300.2,3299.5,2.42458]
[1722216731841,2.42417,3300.1,3299.5,2.42458]
[1722216732549,2.42396,3300.4,3299.5,2.42458]
[1722216732869,2.4239,3300.5,3299.7,2.42442]
[1722216733189,2.42373,3300.7,3300.0,2.42424]
[1722216733315,2.666103,3300.7,3300.0,2.42424]
[1722216734328,2.42361,3300.9,3300.1,2.42416]
[1722216734527,2.4237,3300.8,3300.1,2.42416]
[1722216734736,2.4237,3300.8,3300.0,4.68144]
[1722216734737,5.05151133,3301.2,3300.0,2.2572]
[1722216734942,2.42384,3300.6,3299.9,2.42431]
[1722216735167,2.42394,3300.4,3299.7,9.2044]
[1722216735451,2.42394,3300.4,3299.8,2.42438]
[1722216736018,2.42384,3300.6,3299.9,2.4243]
[1722216736634,2.42397,3300.4,3299.8,2.42438]
[1722216736837,0.484784,3300.3,3299.8,2.42438]
[1722216737040,2.42397,3300.4,3299.8,2.42438]
[1722216737621,2.42408,3300.3,3299.7,6.78]
[1722216739256,2.42408,3300.3,3299.6,4.6817]
[1722216739493,2.42387,3300.5,3299.8,2.53458108]
[1722216739777,2.4238,3300.6,3299.9,0.11017164]
[1722216740075,2.42358,3300.9,3299.9,0.11017164]
[1722216740232,0.29456058,3301.0,3299.9,0.11017164]
[1722216740432,0.29456058,3301.0,3299.4,9.20466]
[1722216740433,2.42417,3300.1,3299.4,9.20466]
[1722216740741,2.42426,3300.0,3299.4,9.20466]
[1722216740946,2.42426,3300.0,3299.5,0.11045773]
[1722216741170,2.42453,3299.6,3299.5,0.11045773]
[1722216741382,2.42453,3299.6,3299.1,6.78]
[1722216741545,2.42475,3299.3,3299.2,0.11067234]
[1722216741748,2.42475,3299.3,3298.5,9.20532]
[1722216741749,2.42484,3299.2,3298.5,9.20532]
[1722216741976,2.42484,3299.2,3298.6,0.11110167]
[1722216742287,2.42488,3299.2,3298.6,0.11110167]
[1722216742445,2.42471,3299.4,3298.7,2.42518]
[1722216742644,2.42454,3299.6,3298.7,2.42518]
[1722216742645,2.42454,3299.6,3298.8,2.4251]
[1722216742844,2.42454,3299.6,3298.9,2.42504]
[1722216743138,2.42454,3299.6,3299.0,0.11081543]
[1722216743366,2.909435,3299.6,3299.0,2.53578543]
[1722216743563,2.42461,3299.5,3299.0,0.11081543]
[1722216743771,2.42461,3299.5,3298.8,2.42507]
[1722216743970,2.42461,3299.5,3298.9,0.11088699]
[1722216744873,2.42461,3299.5,3298.9,2.53589699]
[1722216745930,2.42476,3299.3,3298.9,0.11088699]
[1722216746276,2.42476,3299.3,3298.7,2.42518]
[1722216746794,2.42476,3299.3,3298.8,0.11100451]
[1722216747204,2.42476,3299.3,3298.7,2.42518]
[1722216747496,2.42476,3299.3,3298.9,0.11093295]
[1722216747703,2.4248,3299.3,3298.8,0.11100451]
[1722216747908,2.42487,3299.2,3298.9,0.11093295]
[1722216748204,2.42487,3299.2,3298.5,9.20533]
[1722216748417,2.42487,3299.2,3299.0,0.1108614]
[1722216748719,2.9340846,3299.2,3299.1,0.11078985]
[1722216748918,2.42491,3299.1,3298.5,6.78]
[1722216749095,2.42491,3299.1,3298.6,0.11114764]
[1722216749628,2.42499,3299.0,3298.6,0.11114764]
[1722216750233,4.85038,3298.7,3298.6,0.11114764]
[1722216751329,4.01100148,3298.9,3298.6,0.11114764]
[1722216751528,2.42497,3299.0,3298.4,2.42537]
[1722216751830,2.42491,3299.1,3298.5,0.11121921]
[1722216752342,2.42491,3299.1,3298.4,2.42537]
[1722216752343,2.42483,3299.2,3298.4,2.4254]
[1722216752511,2.4249,3299.1,3298.6,0.11114764]
[1722216752700,2.4249,3299.1,3298.5,0.11121921]
[1722216753038,2.42476,3299.3,3298.4,2.66794]
[1722216753039,2.42476,3299.3,3298.6,2.53640764]
[1722216753244,2.42453,3299.6,3298.7,4.91506]
[1722216753548,2.42451,3299.7,3298.9,2.42503]
[1722216753705,2.42451,3299.7,3299.0,2.42492]
[1722216754030,2.42451,3299.7,3299.0,2.5357814]
[1722216754992,2.42453,3299.6,3299.0,2.5357814]
[1722216755192,2.42453,3299.6,3299.0,0.1108614]
[1722216755444,2.42453,3299.6,3298.8,2.92771076]
[1722216755659,2.42453,3299.6,3299.1,0.11081205]
[1722216755946,2.42461,3299.5,3299.2,0.1107405]
[1722216756229,2.42461,3299.5,3298.9,2.42505]
[1722216756437,2.42461,3299.5,3298.8,0.50262076]
[1722216756438,0.3175794,3299.9,3299.3,0.11066896]
[1722216756642,0.3175794,3299.9,3299.0,2.71771708]
[1722216756643,5.7418894,3299.9,3299.0,2.42495]
[1722216756796,5.7418894,3299.9,3299.4,0.11059743]
[1722216756996,5.7418894,3299.9,3299.1,2.42488]
[1722216756997,0.57418894,3299.8,3298.7,11.69505]
[1722216757211,2.42469,3299.4,3298.8,2.53612671]
[1722216757599,2.42477,3299.3,3298.8,0.11102671]
[1722216757914,2.42477,3299.3,3298.7,11.69509]
[1722216758124,2.42484,3299.2,3298.9,0.11095515]
[1722216758317,2.42484,3299.2,3298.7,9.2699]
[1722216758318,2.42491,3299.1,3298.8,0.11102671]
[1722216758515,2.42503,3299.0,3298.8,0.11102671]
[1722216758721,2.42503,3299.0,3298.7,6.78]
[1722216758722,2.42503,3299.0,3298.9,0.11108195]
[1722216759136,2.4249,3299.1,3298.7,6.78]
[1722216759311,2.4249,3299.1,3298.9,0.11109939]
[1722216759657,2.4249,3299.1,3298.7,6.78]
[1722216759658,2.42497,3299.0,3298.7,6.78]
[1722216759806,2.42488,3299.2,3298.7,6.78]
[1722216760006,4.79883,3299.5,3298.6,2.42522]
[1722216760007,0.39596557,3299.4,3298.6,2.42522]
[1722216760247,2.42476,3299.3,3298.7,2.42519]
[1722216760464,2.4247,3299.4,3298.8,2.42511]
[1722216760808,4.01003874,3299.7,3298.9,2.42503]
[1722216761007,2.4247,3299.4,3298.4,12.42]
[1722216761250,2.4247,3299.4,3298.3,9.1258]
[1722216761251,2.42485,3299.2,3298.5,2.42528]
[1722216761402,2.4247,3299.4,3298.6,2.4252]
[1722216761606,2.42454,3299.6,3298.9,2.42504]
[1722216761834,2.42461,3299.5,3298.9,2.42504]
[1722216762049,2.42464,3299.5,3298.9,2.42504]
[1722216762341,2.42458,3299.6,3298.9,2.42504]
[1722216762542,0.72004071,3299.7,3298.8,2.42511]
[1722216762744,0.3175794,3299.9,3299.0,2.4259]
[1722216762917,0.3175794,3299.9,3299.0,4.85081]
[1722216762918,2.42439,3299.8,3299.0,4.85081]
[1722216763244,2.42439,3299.8,3299.2,2.42477]
[1722216763468,0.3175794,3299.9,3299.2,2.42477]
[1722216763667,2.42424,3300.1,3299.5,2.4246]
[1722216763868,0.242424,3300.0,3299.5,2.4246]
[1722216764183,2.42424,3300.1,3299.5,2.4246]
[1722216764331,0.71610216,3300.0,3299.6,2.42452]
[1722216764530,2.42402,3300.3,3299.6,2.42452]
[1722216764762,0.71609899,3300.2,3299.6,2.42452]
[1722216764965,0.71609899,3300.1,3299.7,2.42444]
[1722216765165,1.58575918,3300.6,3299.9,2.4937]
[1722216765479,0.71612627,3300.5,3299.9,2.4937]
[1722216765648,0.71612627,3300.4,3300.0,2.42417]
[1722216765966,0.71612627,3300.3,3300.2,2.42408]
[1722216766330,2.7409977,3301.0,3300.2,2.666488]
[1722216766537,3.13975042,3300.9,3300.2,2.42408]
[1722216766764,0.71617042,3300.8,3300.3,2.42401]
[1722216767075,2.42358,3300.9,3300.3,2.42401]
[1722216767076,0.71617042,3300.7,3300.3,2.42401]
[1722216767288,0.71617042,3300.6,3300.3,2.42401]
[1722216767482,0.71617042,3300.5,3300.3,2.42401]
[1722216767772,0.3174877,3301.0,3300.7,2.42371]
[1722216767931,0.57862773,3300.9,3300.7,2.42371]
[1722216768134,0.57862773,3300.8,3300.5,2.42386]
[1722216768345,2.22028452,3301.7,3300.3,2.424]
[1722216768346,0.57862773,3300.7,3300.3,2.424]
[1722216768542,2.42343,3301.1,3300.3,2.424]
[1722216768543,0.57862773,3300.6,3300.3,2.424]
[1722216768845,2.42343,3301.1,3300.3,2.424]
[1722216768846,0.57862773,3300.5,3300.4,2.42394]
[1722216769057,0.57862773,3301.0,3300.4,2.42394]
[1722216769258,0.57862773,3301.0,3300.1,3.0]
[1722216769259,0.57862773,3300.9,3300.7,2.42367]
[1722216769445,4.19914886,3301.5,3300.8,2.42365]
[1722216769771,0.57876016,3301.4,3300.8,2.5330768]
[1722216769935,0.57876016,3301.3,3300.8,2.5330768]
[1722216770130,4.19914886,3301.5,3300.9,2.42357]
[1722216770131,0.57876016,3301.2,3300.9,2.42357]
[1722216770331,2.4028,3301.8,3301.0,4.847]
[1722216770332,0.57876016,3301.1,3301.0,4.847]
[1722216770566,0.57871052,3301.1,3301.0,4.847]
[1722216770772,0.57871052,3301.1,3301.0,4.95628386]
[1722216771135,0.57871052,3301.1,3301.0,7.45438386]
[1722216771430,0.57871052,3301.1,3301.0,8.76214341]
[1722216772777,0.57871052,3301.1,3301.0,11.18564341]
[1722216773140,0.57871052,3301.1,3301.0,8.76214341]
[1722216775260,0.57871052,3301.1,3301.0,6.33864341]
[1722216777173,0.57871052,3301.1,3301.0,8.76214341]
[1722216778251,0.57871052,3301.1,3301.0,7.45438386]
[1722216779600,0.57871052,3301.1,3301.0,0.10928386]
[1722216779882,0.57871052,3301.1,3300.6,2.42378]
[1722216780037,0.1486537,3301.9,3300.4,6.78]
[1722216780038,0.57871052,3301.0,3300.4,6.78]
[1722216780233,0.57871052,3300.9,3300.4,6.78]
[1722216780481,2.42322,3301.4,3300.8,2.4236]
[1722216780681,2.4089,3301.8,3301.2,2.42336]
[1722216780682,0.57907882,3301.3,3301.2,2.42336]
[1722216780839,0.57907882,3301.3,3301.0,2.42345]
[1722216781040,0.57907882,3301.2,3301.0,2.42345]
[1722216781341,0.57907882,3301.1,3301.0,4.84695]
[1722216781546,0.57907882,3301.1,3301.0,5.089295]
[1722216781875,0.57907882,3301.1,3301.0,7.479395]
[1722216782566,0.57907882,3301.1,3301.0,5.055895]
[1722216782882,0.57907882,3301.1,3301.0,2.42345]
[1722216783245,2.5714937,3301.9,3301.2,2.42329]
[1722216783440,3.00199299,3301.8,3301.0,2.42345]
[1722216783641,0.57906299,3301.7,3301.0,2.42345]
[1722216784445,3.00206299,3301.7,3301.1,2.53221528]
[1722216784659,3.00206299,3301.7,3301.1,0.10880528]
[1722216784660,2.42314,3301.5,3301.1,0.10880528]
[1722216784887,0.57906299,3301.4,3301.1,0.10880528]
[1722216785047,0.57906299,3301.4,3300.9,6.78]
[1722216785378,0.57906299,3301.4,3300.9,9.20355]
[1722216785544,0.57906299,3301.3,3300.9,9.20355]
[1722216785745,0.57906299,3301.2,3301.0,1.32922541]
[1722216785979,2.42305,3301.7,3301.0,1.32922541]
[1722216786142,0.57897772,3301.6,3301.0,0.10887041]
[1722216786343,0.57897772,3301.5,3301.2,2.42331]
[1722216786572,0.57897772,3301.4,3301.3,0.10868137]
[1722216786772,0.57897772,3301.4,3301.2,2.42331]
[1722216786979,0.57897772,3301.3,3301.2,2.42331]
[1722216787343,0.57897772,3301.3,3301.2,5.561583]
[1722216787877,0.57897772,3301.3,3301.2,3.138223]
[1722216788086,0.57897772,3301.3,3301.2,5.561583]
[1722216788377,0.1486537,3301.9,3301.2,5.561583]
[1722216788378,0.1486537,3301.9,3301.4,2.42318]
[1722216788619,0.57901022,3301.8,3301.4,2.42318]
[1722216788822,0.57901022,3301.7,3301.4,2.42318]
[1722216789117,0.57901022,3301.6,3301.4,2.9793203]
[1722216789327,0.57901022,3301.5,3301.3,2.42327]
[1722216789482,0.57901022,3301.4,3301.3,2.42327]
[1722216789812,0.1486537,3301.9,3301.4,2.42321]
[1722216790001,2.42295,3301.8,3301.2,2.4233]
[1722216790722,0.1486537,3301.9,3301.3,2.42328]
[1722216791126,0.1486537,3301.9,3301.0,6.78]
[1722216791127,0.40579907,3301.9,3301.0,6.78]
[1722216791428,2.42321,3301.5,3301.0,6.78]
[1722216791640,2.42321,3301.4,3301.0,6.78]
[1722216791945,2.3551,3301.8,3301.0,6.78]
[1722216791946,2.42332,3301.3,3301.0,6.78]
[1722216792249,2.42343,3301.1,3301.0,6.78]
[1722216792412,2.42317,3301.5,3300.8,2.42362]
[1722216792816,2.42317,3301.5,3300.4,6.78]
[1722216793125,2.42317,3301.5,3300.9,2.42356]
[1722216793307,2.42323,3301.4,3300.8,2.42361]
[1722216793509,2.42317,3301.5,3300.9,2.42353]
[1722216793682,2.42315,3301.5,3300.8,2.42361]
[1722216793932,2.42323,3301.4,3300.8,2.42361]
[1722216794141,2.42323,3301.4,3300.6,2.42376]
[1722216794430,2.42336,3301.2,3300.6,2.42376]
[1722216794622,2.42336,3301.2,3300.7,2.42372]
[1722216795197,2.42323,3301.4,3300.7,2.42372]
[1722216795400,2.42329,3301.3,3300.7,2.42372]
[1722216795929,2.42319,3301.5,3300.7,2.42367]
[1722216796084,2.4231,3301.6,3300.8,2.42365]
[1722216796085,2.42322,3301.4,3300.8,2.42365]
[1722216797437,2.3551,3301.8,3300.8,2.42363]
[1722216797438,4.77803,3301.8,3300.8,2.42363]
[1722216797636,2.42315,3301.5,3300.9,2.42353]
[1722216798291,0.1486537,3301.9,3301.1,2.42337]
[1722216798292,2.5715037,3301.9,3301.1,2.42337]
[1722216798642,2.5715037,3301.9,3301.3,2.42322]
[1722216798785,0.1486537,3301.9,3300.8,2.704]
[1722216798984,2.42318,3301.5,3300.8,2.42363]
[1722216799185,2.42301,3301.7,3301.0,2.4235]
[1722216799386,2.42301,3301.7,3301.1,0.10528201]
[1722216799826,2.42314,3301.5,3301.1,0.10528201]
[1722216800000,2.42314,3301.5,3300.6,9.372708]
[1722216800204,2.4305,3301.2,3300.7,0.105538]
[1722216800536,2.42365,3300.8,3300.4,6.78]
[1722216800732,2.42365,3300.8,3300.2,3.43976263]
[1722216800940,2.42365,3300.8,3300.2,4.94402989]
[1722216801229,2.42373,3300.7,3300.2,4.94402989]
[1722216801639,2.42373,3300.7,3300.2,3.43976263]
[1722216802145,2.42363,3300.9,3300.2,3.43976263]
[1722216802640,2.42363,3300.9,3300.2,5.86385263]
[1722216803144,2.42373,3300.7,3300.2,3.43976263]
[1722216804639,2.42366,3300.8,3300.1,2.42413]
[1722216804831,2.42366,3300.8,3300.1,6.886961]
[1722216805039,2.42373,3300.7,3300.1,6.886961]
[1722216805929,2.42346,3301.1,3300.3,2.42401]
[1722216806093,2.42346,3301.1,3300.4,2.42393]
[1722216806294,2.4305,3301.2,3300.5,2.42383]
[1722216806295,4.85386,3301.2,3300.5,2.42383]
[1722216806496,4.85386,3301.2,3300.5,2.908614]
[1722216806822,2.42321,3301.4,3300.7,2.4237]
[1722216807224,2.42321,3301.4,3300.8,2.42364]
[1722216807543,0.31744372,3301.7,3301.1,2.42338]
[1722216807700,2.42293,3301.8,3301.1,2.42338]
[1722216807900,4.8593037,3301.9,3301.1,2.42338]
[1722216808246,2.5715037,3301.9,3301.3,2.42327]
[1722216808574,0.1486537,3301.9,3301.4,2.42321]
[1722216808779,0.1486537,3301.9,3301.5,2.42309]
[1722216809528,0.1486537,3301.9,3301.7,2.42298]
[1722216809922,0.1486537,3301.9,3301.5,2.907716]
[1722216810466,0.1486537,3301.9,3301.1,2.613038]
[1722216810467,2.5715537,3301.9,3301.2,2.42331]
[1722216810653,2.42293,3301.8,3301.2,2.42331]
[1722216811158,2.42299,3301.7,3301.1,2.42342]
[1722216811346,3.87924619,3301.8,3300.8,11.54882]
[1722216811551,2.423,3301.7,3301.1,2.42343]
[1722216811727,2.42311,3301.6,3300.9,5.42352]
[1722216811925,0.88737599,3301.7,3301.0,2.4235]
[1722216812129,0.88737599,3301.7,3301.1,2.42343]
[1722216812378,4.01048619,3301.7,3300.8,11.54882]
[1722216812542,2.42315,3301.5,3300.9,2.42355]
[1722216813250,2.42315,3301.5,3300.8,6.78]
[1722216813429,4.01219961,3301.6,3300.9,2.42353]
[1722216813773,4.01212961,3301.7,3301.0,2.42344]
[1722216814081,4.01212961,3301.7,3301.1,2.4234]
[1722216814378,3.88088961,3301.8,3301.0,2.42348]
[1722216814531,6.30384961,3301.8,3301.2,0.10524989]
[1722216814736,4.01207961,3301.7,3301.1,0.10532135]
[1722216814965,1.58908961,3301.7,3301.3,0.10517844]
[1722216815125,2.5715137,3301.9,3301.6,2.423]
[1722216815126,1.73774331,3301.9,3301.6,2.423]
[1722216815325,0.1486537,3301.9,3301.6,2.423]
[1722216815629,0.1486537,3301.9,3301.7,0.1048046]
[1722216815945,1.73768149,3301.9,3300.9,5.1617]
[1722216816140,0.1486537,3301.9,3301.8,0.10473317]
[1722216816364,0.1486537,3301.9,3301.7,2.42299]
[1722216816583,0.1486537,3301.9,3301.8,0.10473317]
[1722216816929,0.1486537,3301.9,3301.6,2.42305]